[Event "Titled Tuesday Blitz June 13 Early 2023"]
[White "Fedoseev, Vladimir"]
[Black "Yeletsky, Ivan"]
[WhiteFideId "24130737"]
[BlackFideId "24180327"]
[WhiteElo "2743"]
[BlackElo "2380"]
[Result "1-0"]
[Round "6"]
[TimeControl "180+2"]
[Date "2023.06.13"]
[WhiteClock "0:01:21"]
[BlackClock "0:00:04"]
[Board "10"]

1. e4 {[%clk 0:03:00]}  e5 {[%clk 0:02:59]} 2. f4 {[%clk 0:03:00]}  d5 {[%clk 0:02:57]} 3. exd5 {[%clk 0:02:55]}  exf4 {[%clk 0:02:58]} 4. Nf3 {[%clk 0:02:55]}  Nf6 {[%clk 0:02:58]} 5. Bb5+ {[%clk 0:02:51]}  c6 {[%clk 0:02:58]} 6. dxc6 {[%clk 0:02:48]}  Nxc6 {[%clk 0:02:59]} 7. d4 {[%clk 0:02:43]}  Bd6 {[%clk 0:02:55]} 8. O-O {[%clk 0:02:38]}  O-O {[%clk 0:02:55]} 9. c3 {[%clk 0:02:32]}  h6 {[%clk 0:02:46]} 10. Nbd2 {[%clk 0:02:29]}  g5 {[%clk 0:02:46]} 11. Bxc6 {[%clk 0:02:26]}  bxc6 {[%clk 0:02:46]} 12. Nc4 {[%clk 0:02:26]}  Bc7 {[%clk 0:02:38]} 13. Nfe5 {[%clk 0:02:26]}  Qd5 {[%clk 0:02:33]} 14. Bxf4 {[%clk 0:02:19]}  gxf4 {[%clk 0:02:33]} 15. Rxf4 {[%clk 0:02:20]}  Kg7 {[%clk 0:01:36]} 16. Qd3 {[%clk 0:02:00]}  Ng4 {[%clk 0:01:24]} 17. Qg3 {[%clk 0:01:44]}  h5 {[%clk 0:01:08]} 18. h3 {[%clk 0:01:43]}  f6 {[%clk 0:01:07]} 19. hxg4 {[%clk 0:01:41]}  h4 {[%clk 0:01:06]} 20. Qxh4 {[%clk 0:01:40]}  Ba6 {[%clk 0:00:29]} 21. Rxf6 {[%clk 0:01:33]}  Rxf6 {[%clk 0:00:14]} 22. Qg5+ {[%clk 0:01:33]}  Kh7 {[%clk 0:00:15]} 23. Qxf6 {[%clk 0:01:33]}  Rg8 {[%clk 0:00:09]} 24. Ne3 {[%clk 0:01:27]}  Qe4 {[%clk 0:00:07]} 25. Nf5 {[%clk 0:01:22]}  Bxe5 {[%clk 0:00:04]} 26. Qh6# {[%clk 0:01:21]} 1-0


[Site "https://www.chess.com"]

[Event "Titled Tuesday Blitz June 13 Early 2023"]
[White "Timofeev, Artyom"]
[Black "Le, Tuan Minh"]
[WhiteFideId "4140419"]
[BlackFideId "12401153"]
[WhiteElo "2570"]
[BlackElo "2566"]
[Result "1/2-1/2"]
[Round "6"]
[TimeControl "180+2"]
[Date "2023.06.13"]
[WhiteClock "0:00:12"]
[BlackClock "0:00:07"]
[Board "11"]

1. c4 {[%clk 0:03:00]}  c6 {[%clk 0:03:00]} 2. Nf3 {[%clk 0:02:56]}  d5 {[%clk 0:03:00]} 3. e3 {[%clk 0:02:56]}  Nf6 {[%clk 0:03:00]} 4. Nc3 {[%clk 0:02:55]}  a6 {[%clk 0:03:01]} 5. Be2 {[%clk 0:02:49]}  Bf5 {[%clk 0:02:52]} 6. O-O {[%clk 0:02:46]}  e6 {[%clk 0:02:53]} 7. b3 {[%clk 0:02:42]}  h6 {[%clk 0:02:49]} 8. Bb2 {[%clk 0:02:41]}  Nbd7 {[%clk 0:02:49]} 9. d4 {[%clk 0:02:39]}  Bd6 {[%clk 0:02:49]} 10. Bd3 {[%clk 0:02:39]}  Bxd3 {[%clk 0:02:48]} 11. Qxd3 {[%clk 0:02:39]}  O-O {[%clk 0:02:49]} 12. h3 {[%clk 0:02:36]}  a5 {[%clk 0:02:49]} 13. a3 {[%clk 0:02:34]}  Re8 {[%clk 0:02:48]} 14. Rfe1 {[%clk 0:02:31]}  Bf8 {[%clk 0:02:45]} 15. Rad1 {[%clk 0:02:28]}  Qb6 {[%clk 0:02:45]} 16. Qc2 {[%clk 0:02:27]}  Qa6 {[%clk 0:02:44]} 17. Nd2 {[%clk 0:02:24]}  b5 {[%clk 0:02:32]} 18. c5 {[%clk 0:02:12]}  e5 {[%clk 0:02:25]} 19. b4 {[%clk 0:02:11]}  axb4 {[%clk 0:02:09]} 20. axb4 {[%clk 0:02:11]}  Qc8 {[%clk 0:02:05]} 21. dxe5 {[%clk 0:01:54]}  Nxe5 {[%clk 0:02:04]} 22. Ne2 {[%clk 0:01:54]}  g6 {[%clk 0:01:24]} 23. Bxe5 {[%clk 0:01:50]}  Rxe5 {[%clk 0:01:23]} 24. Nd4 {[%clk 0:01:50]}  Bg7 {[%clk 0:01:20]} 25. Ra1 {[%clk 0:01:42]}  Ne4 {[%clk 0:01:15]} 26. N2f3 {[%clk 0:01:40]}  Re7 {[%clk 0:01:09]} 27. Qb2 {[%clk 0:01:28]}  Rxa1 {[%clk 0:00:36]} 28. Rxa1 {[%clk 0:01:25]}  Ng5 {[%clk 0:00:37]} 29. Nxg5 {[%clk 0:01:15]}  hxg5 {[%clk 0:00:38]} 30. Ra3 {[%clk 0:00:59]}  g4 {[%clk 0:00:32]} 31. Qa1 {[%clk 0:00:52]}  Re8 {[%clk 0:00:26]} 32. hxg4 {[%clk 0:00:51]}  Qxg4 {[%clk 0:00:27]} 33. Ra8 {[%clk 0:00:50]}  Qd7 {[%clk 0:00:22]} 34. Rxe8+ {[%clk 0:00:39]}  Qxe8 {[%clk 0:00:22]} 35. Qd1 {[%clk 0:00:36]}  Bf6 {[%clk 0:00:20]} 36. Qd3 {[%clk 0:00:35]}  Kg7 {[%clk 0:00:21]} 37. g3 {[%clk 0:00:35]}  Qd7 {[%clk 0:00:20]} 38. Kf1 {[%clk 0:00:34]}  Be5 {[%clk 0:00:18]} 39. Kg2 {[%clk 0:00:32]}  Qe8 {[%clk 0:00:19]} 40. Nf3 {[%clk 0:00:29]}  Bf6 {[%clk 0:00:19]} 41. Nd4 {[%clk 0:00:29]}  Qa8 {[%clk 0:00:17]} 42. Qd2 {[%clk 0:00:25]}  Qc8 {[%clk 0:00:16]} 43. Qd3 {[%clk 0:00:25]}  Qd7 {[%clk 0:00:17]} 44. Qd2 {[%clk 0:00:25]}  Qe8 {[%clk 0:00:17]} 45. Qd3 {[%clk 0:00:25]}  Bxd4 {[%clk 0:00:16]} 46. Qxd4+ {[%clk 0:00:25]}  f6 {[%clk 0:00:17]} 47. Kf3 {[%clk 0:00:23]}  g5 {[%clk 0:00:17]} 48. g4 {[%clk 0:00:22]}  Qe6 {[%clk 0:00:15]} 49. Ke2 {[%clk 0:00:21]}  Kg6 {[%clk 0:00:14]} 50. f3 {[%clk 0:00:19]}  f5 {[%clk 0:00:14]} 51. Qd3 {[%clk 0:00:18]}  Kf6 {[%clk 0:00:14]} 52. Qd4+ {[%clk 0:00:18]}  Qe5 {[%clk 0:00:14]} 53. Kd3 {[%clk 0:00:14]}  fxg4 {[%clk 0:00:08]} 54. fxg4 {[%clk 0:00:13]}  Ke6 {[%clk 0:00:08]} 55. Kd2 {[%clk 0:00:12]}  Qh2+ {[%clk 0:00:07]} 56. Kc1 {[%clk 0:00:11]}  Qg1+ {[%clk 0:00:07]} 57. Kc2 {[%clk 0:00:11]}  Qf2+ {[%clk 0:00:08]} 58. Kb1 {[%clk 0:00:12]}  Qf1+ {[%clk 0:00:08]} 59. Kc2 {[%clk 0:00:12]}  Qc4+ {[%clk 0:00:08]} 60. Kd2 {[%clk 0:00:12]}  Qa2+ {[%clk 0:00:08]} 61. Ke1 {[%clk 0:00:13]}  Qb1+ {[%clk 0:00:08]} 62. Ke2 {[%clk 0:00:13]}  Qg1 {[%clk 0:00:07]} 63. Kd2 {[%clk 0:00:12]}  Qf1 {[%clk 0:00:07]} 64. Kc2 {[%clk 0:00:12]}  Qf3 {[%clk 0:00:08]} 65. Kd2 {[%clk 0:00:12]}  Qf1 {[%clk 0:00:07]} 66. Kc2 {[%clk 0:00:12]} 1/2-1/2


[Site "https://www.chess.com"]

[Event "Titled Tuesday Blitz June 13 Early 2023"]
[White "Kosakowski, Jakub"]
[Black "Sarana, Alexey"]
[WhiteFideId "1185080"]
[BlackFideId "24133795"]
[WhiteElo "2488"]
[BlackElo "2714"]
[Result "0-1"]
[Round "6"]
[TimeControl "180+2"]
[Date "2023.06.13"]
[WhiteClock "0:00:01"]
[BlackClock "0:00:30"]
[Board "12"]

1. e4 {[%clk 0:02:21]}  c5 {[%clk 0:02:59]} 2. Nf3 {[%clk 0:02:21]}  d6 {[%clk 0:03:00]} 3. d4 {[%clk 0:02:21]}  cxd4 {[%clk 0:03:01]} 4. Nxd4 {[%clk 0:02:21]}  Nf6 {[%clk 0:03:01]} 5. Nc3 {[%clk 0:02:22]}  a6 {[%clk 0:03:02]} 6. h4 {[%clk 0:02:22]}  e5 {[%clk 0:02:57]} 7. Nb3 {[%clk 0:02:22]}  Be7 {[%clk 0:02:57]} 8. Bg5 {[%clk 0:02:23]}  Nbd7 {[%clk 0:02:55]} 9. a4 {[%clk 0:02:04]}  b6 {[%clk 0:02:55]} 10. f3 {[%clk 0:01:57]}  Bb7 {[%clk 0:02:55]} 11. Qd2 {[%clk 0:01:57]}  Qc7 {[%clk 0:02:50]} 12. O-O-O {[%clk 0:01:48]}  O-O {[%clk 0:02:49]} 13. Kb1 {[%clk 0:01:48]}  Bc6 {[%clk 0:02:45]} 14. g4 {[%clk 0:01:39]}  b5 {[%clk 0:02:39]} 15. a5 {[%clk 0:01:37]}  Rfc8 {[%clk 0:02:30]} 16. h5 {[%clk 0:01:31]}  b4 {[%clk 0:02:26]} 17. Na2 {[%clk 0:01:30]}  Nxe4 {[%clk 0:01:46]} 18. fxe4 {[%clk 0:01:23]}  Bxg5 {[%clk 0:01:46]} 19. Qxd6 {[%clk 0:00:20]}  Bxe4 {[%clk 0:01:38]} 20. Qxc7 {[%clk 0:00:19]}  Rxc7 {[%clk 0:01:39]} 21. Rh2 {[%clk 0:00:19]}  Bf4 {[%clk 0:01:37]} 22. Rf2 {[%clk 0:00:18]}  Nf6 {[%clk 0:01:37]} 23. Nxb4 {[%clk 0:00:18]}  Nxg4 {[%clk 0:01:37]} 24. Re2 {[%clk 0:00:14]}  Bf3 {[%clk 0:01:38]} 25. Nd5 {[%clk 0:00:14]}  Rca7 {[%clk 0:01:15]} 26. Nc5 {[%clk 0:00:07]}  Nf6 {[%clk 0:01:03]} 27. Nxf6+ {[%clk 0:00:03]}  gxf6 {[%clk 0:01:04]} 28. Rde1 {[%clk 0:00:02]}  Bxe2 {[%clk 0:01:02]} 29. Bxe2 {[%clk 0:00:03]}  f5 {[%clk 0:01:01]} 30. c3 {[%clk 0:00:03]}  Kg7 {[%clk 0:00:59]} 31. Rg1+ {[%clk 0:00:02]}  Kf6 {[%clk 0:00:58]} 32. Rf1 {[%clk 0:00:03]}  h6 {[%clk 0:00:52]} 33. b4 {[%clk 0:00:03]}  Kg5 {[%clk 0:00:51]} 34. Kc2 {[%clk 0:00:03]}  Be3 {[%clk 0:00:50]} 35. Nd3 {[%clk 0:00:02]}  e4 {[%clk 0:00:50]} 36. Ne5 {[%clk 0:00:03]}  Re7 {[%clk 0:00:44]} 37. Nc4 {[%clk 0:00:03]}  Bf4 {[%clk 0:00:39]} 38. Nb6 {[%clk 0:00:03]}  Rd8 {[%clk 0:00:38]} 39. Bxa6 {[%clk 0:00:03]}  e3 {[%clk 0:00:37]} 40. Kb3 {[%clk 0:00:02]}  Bg3 {[%clk 0:00:31]} 41. Rg1 {[%clk 0:00:02]}  f4 {[%clk 0:00:31]} 42. Bc4 {[%clk 0:00:02]}  e2 {[%clk 0:00:30]} 43. Bxe2 {[%clk 0:00:02]}  Rxe2 {[%clk 0:00:31]} 44. a6 {[%clk 0:00:01]}  Re6 {[%clk 0:00:30]} 0-1


[Site "https://www.chess.com"]

[Event "Titled Tuesday Blitz June 13 Early 2023"]
[White "Wojtaszek, Radoslaw"]
[Black "Erigaisi Arjun"]
[WhiteFideId "1118358"]
[BlackFideId "35009192"]
[WhiteElo "2586"]
[BlackElo "2719"]
[Result "1-0"]
[Round "6"]
[TimeControl "180+2"]
[Date "2023.06.13"]
[WhiteClock "0:00:10"]
[BlackClock "0:00:42"]
[Board "17"]

1. c4 {[%clk 0:03:00]}  d6 {[%clk 0:02:59]} 2. Nc3 {[%clk 0:03:00]}  g6 {[%clk 0:03:00]} 3. d4 {[%clk 0:02:59]}  Bg7 {[%clk 0:03:01]} 4. Nf3 {[%clk 0:02:59]}  Nc6 {[%clk 0:03:00]} 5. d5 {[%clk 0:02:58]}  Ne5 {[%clk 0:03:00]} 6. Nxe5 {[%clk 0:02:59]}  Bxe5 {[%clk 0:03:01]} 7. e4 {[%clk 0:02:59]}  e6 {[%clk 0:02:59]} 8. Bd3 {[%clk 0:02:59]}  Nf6 {[%clk 0:02:49]} 9. h3 {[%clk 0:02:55]}  O-O {[%clk 0:02:45]} 10. O-O {[%clk 0:02:54]}  c5 {[%clk 0:02:42]} 11. Bh6 {[%clk 0:02:46]}  Re8 {[%clk 0:02:42]} 12. Qd2 {[%clk 0:02:46]}  exd5 {[%clk 0:02:33]} 13. exd5 {[%clk 0:02:41]}  Nh5 {[%clk 0:02:31]} 14. Rae1 {[%clk 0:02:27]}  Bxh3 {[%clk 0:02:11]} 15. gxh3 {[%clk 0:02:03]}  Qh4 {[%clk 0:02:11]} 16. Rxe5 {[%clk 0:01:12]}  Rxe5 {[%clk 0:02:12]} 17. Kh2 {[%clk 0:01:12]}  Rae8 {[%clk 0:02:06]} 18. Rg1 {[%clk 0:01:09]}  a6 {[%clk 0:01:47]} 19. Bg5 {[%clk 0:01:00]}  Qd4 {[%clk 0:01:46]} 20. Rg4 {[%clk 0:00:57]}  f6 {[%clk 0:01:24]} 21. Rxd4 {[%clk 0:00:44]}  cxd4 {[%clk 0:01:25]} 22. Ne4 {[%clk 0:00:40]}  fxg5 {[%clk 0:01:23]} 23. Nxg5 {[%clk 0:00:39]}  Rf8 {[%clk 0:01:17]} 24. Ne6 {[%clk 0:00:37]}  Rf3 {[%clk 0:01:17]} 25. Kg2 {[%clk 0:00:31]}  Rxd3 {[%clk 0:01:15]} 26. Qxd3 {[%clk 0:00:28]}  Rxe6 {[%clk 0:01:16]} 27. Qxd4 {[%clk 0:00:27]}  Rf6 {[%clk 0:01:11]} 28. Qb6 {[%clk 0:00:22]}  Nf4+ {[%clk 0:01:11]} 29. Kf1 {[%clk 0:00:17]}  Nxh3 {[%clk 0:01:08]} 30. Qd8+ {[%clk 0:00:17]}  Rf8 {[%clk 0:01:08]} 31. Qxd6 {[%clk 0:00:17]}  Nxf2 {[%clk 0:01:07]} 32. Qe6+ {[%clk 0:00:17]}  Kg7 {[%clk 0:01:07]} 33. d6 {[%clk 0:00:17]}  Nd3+ {[%clk 0:01:01]} 34. Kg1 {[%clk 0:00:16]}  Nf4 {[%clk 0:00:54]} 35. Qe5+ {[%clk 0:00:15]}  Kh6 {[%clk 0:00:55]} 36. d7 {[%clk 0:00:15]}  Nh3+ {[%clk 0:00:53]} 37. Kh2 {[%clk 0:00:14]}  Ng5 {[%clk 0:00:53]} 38. Qe7 {[%clk 0:00:12]}  Rf2+ {[%clk 0:00:51]} 39. Kg1 {[%clk 0:00:09]}  Rd2 {[%clk 0:00:46]} 40. Kf1 {[%clk 0:00:09]}  Nf3 {[%clk 0:00:41]} 41. Qf8+ {[%clk 0:00:09]}  Kg5 {[%clk 0:00:41]} 42. d8=Q+ {[%clk 0:00:08]}  Rxd8 {[%clk 0:00:42]} 43. Qxd8+ {[%clk 0:00:08]}  Kg4 {[%clk 0:00:43]} 44. Qd7+ {[%clk 0:00:08]}  Kg3 {[%clk 0:00:43]} 45. Qc7+ {[%clk 0:00:09]}  Kg4 {[%clk 0:00:43]} 46. Qxb7 {[%clk 0:00:09]}  h5 {[%clk 0:00:43]} 47. Qe4+ {[%clk 0:00:09]}  Kg3 {[%clk 0:00:43]} 48. Qxg6+ {[%clk 0:00:09]}  Kh4 {[%clk 0:00:43]} 49. Qf6+ {[%clk 0:00:09]}  Kg4 {[%clk 0:00:44]} 50. Kf2 {[%clk 0:00:10]}  Ng5 {[%clk 0:00:44]} 51. Qg6 {[%clk 0:00:09]}  h4 {[%clk 0:00:44]} 52. c5 {[%clk 0:00:09]}  h3 {[%clk 0:00:44]} 53. c6 {[%clk 0:00:10]}  h2 {[%clk 0:00:42]} 54. Kg2 {[%clk 0:00:10]} 1-0


[Site "https://www.chess.com"]

[Event "Titled Tuesday Blitz June 13 Early 2023"]
[White "Vakhlamov, Igor L."]
[Black "Shimanov, Aleksandr"]
[WhiteFideId "24126748"]
[BlackFideId "4198603"]
[WhiteElo "2407"]
[BlackElo "2631"]
[Result "1-0"]
[Round "6"]
[TimeControl "180+2"]
[Date "2023.06.13"]
[WhiteClock "0:00:16"]
[BlackClock "0:00:00"]
[Board "18"]

1. e4 {[%clk 0:03:00]}  e6 {[%clk 0:02:39]} 2. d4 {[%clk 0:02:59]}  d5 {[%clk 0:02:40]} 3. Nc3 {[%clk 0:03:00]}  a6 {[%clk 0:02:39]} 4. Bd3 {[%clk 0:02:57]}  c5 {[%clk 0:02:39]} 5. dxc5 {[%clk 0:02:47]}  Bxc5 {[%clk 0:02:40]} 6. Nf3 {[%clk 0:02:47]}  Ne7 {[%clk 0:02:26]} 7. O-O {[%clk 0:02:46]}  d4 {[%clk 0:02:19]} 8. Ne2 {[%clk 0:02:45]}  Nbc6 {[%clk 0:02:19]} 9. e5 {[%clk 0:02:16]}  Ng6 {[%clk 0:02:16]} 10. Bf4 {[%clk 0:01:49]}  O-O {[%clk 0:02:07]} 11. Re1 {[%clk 0:01:45]}  b5 {[%clk 0:02:01]} 12. Bg3 {[%clk 0:01:42]}  Bb7 {[%clk 0:02:00]} 13. h4 {[%clk 0:01:39]}  h6 {[%clk 0:01:58]} 14. a3 {[%clk 0:01:38]}  Qd7 {[%clk 0:01:51]} 15. Qd2 {[%clk 0:01:30]}  Rfd8 {[%clk 0:01:35]} 16. Rad1 {[%clk 0:01:22]}  Nce7 {[%clk 0:01:10]} 17. h5 {[%clk 0:01:21]}  Nf8 {[%clk 0:01:09]} 18. Qf4 {[%clk 0:01:02]}  Nf5 {[%clk 0:00:47]} 19. Bxf5 {[%clk 0:00:59]}  exf5 {[%clk 0:00:48]} 20. Bh4 {[%clk 0:00:35]}  Bxf3 {[%clk 0:00:30]} 21. Qxf3 {[%clk 0:00:36]}  Re8 {[%clk 0:00:29]} 22. Ng3 {[%clk 0:00:29]}  f4 {[%clk 0:00:24]} 23. Qxf4 {[%clk 0:00:28]}  Ne6 {[%clk 0:00:25]} 24. Qg4 {[%clk 0:00:28]}  Kh8 {[%clk 0:00:21]} 25. Nf5 {[%clk 0:00:29]}  Bf8 {[%clk 0:00:17]} 26. Nxd4 {[%clk 0:00:27]}  Qc7 {[%clk 0:00:09]} 27. c3 {[%clk 0:00:25]}  Rac8 {[%clk 0:00:08]} 28. Nf5 {[%clk 0:00:24]}  Qc6 {[%clk 0:00:04]} 29. Kh2 {[%clk 0:00:22]}  Qc5 {[%clk 0:00:02]} 30. Rd3 {[%clk 0:00:18]}  Rc7 {[%clk 0:00:02]} 31. Rg3 {[%clk 0:00:18]}  Qc4 {[%clk 0:00:02]} 32. Re4 {[%clk 0:00:17]}  Qd3 {[%clk 0:00:02]} 33. Bf6 {[%clk 0:00:17]}  Ng5 {[%clk 0:00:00]} 34. Rxd3 {[%clk 0:00:16]} 1-0


[Site "https://www.chess.com"]

[Event "Titled Tuesday Blitz June 13 Early 2023"]
[White "Sviridov, Valery"]
[Black "Ilamparthi A R"]
[WhiteFideId "4120680"]
[BlackFideId "45015775"]
[WhiteElo "2457"]
[BlackElo "2348"]
[Result "0-1"]
[Round "6"]
[TimeControl "180+2"]
[Date "2023.06.13"]
[WhiteClock "0:00:38"]
[BlackClock "0:00:21"]
[Board "19"]

1. d4 {[%clk 0:02:57]}  Nf6 {[%clk 0:02:59]} 2. Nf3 {[%clk 0:02:55]}  g6 {[%clk 0:02:58]} 3. c4 {[%clk 0:02:55]}  Bg7 {[%clk 0:02:58]} 4. g3 {[%clk 0:02:56]}  O-O {[%clk 0:02:58]} 5. Bg2 {[%clk 0:02:57]}  d6 {[%clk 0:02:58]} 6. O-O {[%clk 0:02:57]}  c5 {[%clk 0:02:58]} 7. Nc3 {[%clk 0:02:58]}  Nc6 {[%clk 0:02:58]} 8. dxc5 {[%clk 0:02:57]}  dxc5 {[%clk 0:02:57]} 9. Bf4 {[%clk 0:02:57]}  Nh5 {[%clk 0:02:40]} 10. Be3 {[%clk 0:02:57]}  b6 {[%clk 0:02:35]} 11. Qc1 {[%clk 0:02:47]}  Bb7 {[%clk 0:02:30]} 12. Rd1 {[%clk 0:02:46]}  Qe8 {[%clk 0:02:28]} 13. Nd5 {[%clk 0:02:43]}  Rd8 {[%clk 0:02:27]} 14. Bh6 {[%clk 0:02:41]}  e6 {[%clk 0:01:58]} 15. Bxg7 {[%clk 0:02:41]}  Kxg7 {[%clk 0:01:59]} 16. Qc3+ {[%clk 0:02:37]}  f6 {[%clk 0:01:57]} 17. Ne3 {[%clk 0:02:30]}  e5 {[%clk 0:01:48]} 18. Rxd8 {[%clk 0:02:25]}  Qxd8 {[%clk 0:01:46]} 19. Qa3 {[%clk 0:02:21]}  e4 {[%clk 0:01:36]} 20. Rd1 {[%clk 0:02:17]}  Qc7 {[%clk 0:01:31]} 21. Nd5 {[%clk 0:02:10]}  Qf7 {[%clk 0:01:30]} 22. Nd2 {[%clk 0:02:07]}  f5 {[%clk 0:01:27]} 23. Qc3+ {[%clk 0:02:05]}  Nf6 {[%clk 0:01:27]} 24. f3 {[%clk 0:02:05]}  Nd4 {[%clk 0:01:27]} 25. Re1 {[%clk 0:01:26]}  Bxd5 {[%clk 0:01:17]} 26. cxd5 {[%clk 0:01:27]}  Nxd5 {[%clk 0:01:16]} 27. Qc4 {[%clk 0:01:22]}  e3 {[%clk 0:01:03]} 28. Nb3 {[%clk 0:01:21]}  Nb4 {[%clk 0:00:53]} 29. Qxf7+ {[%clk 0:01:15]}  Kxf7 {[%clk 0:00:53]} 30. Nxd4 {[%clk 0:01:16]}  cxd4 {[%clk 0:00:53]} 31. a3 {[%clk 0:01:17]}  Nc2 {[%clk 0:00:48]} 32. Rd1 {[%clk 0:01:15]}  Rc8 {[%clk 0:00:48]} 33. Kf1 {[%clk 0:01:15]}  Ke6 {[%clk 0:00:47]} 34. f4 {[%clk 0:01:13]}  a5 {[%clk 0:00:44]} 35. Bf3 {[%clk 0:01:13]}  b5 {[%clk 0:00:43]} 36. Bb7 {[%clk 0:01:09]}  Rc7 {[%clk 0:00:42]} 37. Ba6 {[%clk 0:01:09]}  Rc5 {[%clk 0:00:41]} 38. Bb7 {[%clk 0:01:09]}  b4 {[%clk 0:00:39]} 39. axb4 {[%clk 0:01:10]}  axb4 {[%clk 0:00:39]} 40. Rc1 {[%clk 0:01:11]}  Kd6 {[%clk 0:00:38]} 41. Ba6 {[%clk 0:01:07]}  b3 {[%clk 0:00:37]} 42. Rd1 {[%clk 0:01:06]}  Kc6 {[%clk 0:00:37]} 43. Bc8 {[%clk 0:01:03]}  Kd6 {[%clk 0:00:33]} 44. Ba6 {[%clk 0:01:03]}  Kc7 {[%clk 0:00:29]} 45. Bd3 {[%clk 0:01:01]}  Kb6 {[%clk 0:00:28]} 46. Rc1 {[%clk 0:00:59]}  Nb4 {[%clk 0:00:25]} 47. Rd1 {[%clk 0:00:59]}  Rc2 {[%clk 0:00:21]} 48. Bxc2 {[%clk 0:00:48]}  bxc2 {[%clk 0:00:21]} 49. Rc1 {[%clk 0:00:44]}  Kc5 {[%clk 0:00:21]} 50. b3 {[%clk 0:00:43]}  Kd5 {[%clk 0:00:22]} 51. Ke1 {[%clk 0:00:38]}  d3 {[%clk 0:00:21]} 0-1


[Site "https://www.chess.com"]

[Event "Titled Tuesday Blitz June 13 Early 2023"]
[White "Priasmoro, Novendra"]
[Black "Sjugirov, Sanan"]
[WhiteFideId "7105029"]
[BlackFideId "4189302"]
[WhiteElo "2412"]
[BlackElo "2569"]
[Result "0-1"]
[Round "6"]
[TimeControl "180+2"]
[Date "2023.06.13"]
[WhiteClock "0:00:03"]
[BlackClock "0:00:04"]
[Board "23"]

1. e4 {[%clk 0:03:00]}  c5 {[%clk 0:03:00]} 2. Nf3 {[%clk 0:02:59]}  d6 {[%clk 0:03:00]} 3. d4 {[%clk 0:02:59]}  cxd4 {[%clk 0:03:01]} 4. Nxd4 {[%clk 0:03:00]}  Nf6 {[%clk 0:03:01]} 5. Nc3 {[%clk 0:03:00]}  a6 {[%clk 0:03:02]} 6. g3 {[%clk 0:02:59]}  e5 {[%clk 0:03:02]} 7. Nde2 {[%clk 0:02:59]}  Be7 {[%clk 0:03:02]} 8. Bg2 {[%clk 0:02:59]}  O-O {[%clk 0:03:00]} 9. O-O {[%clk 0:03:00]}  b5 {[%clk 0:02:56]} 10. Nd5 {[%clk 0:02:59]}  Nxd5 {[%clk 0:02:54]} 11. Qxd5 {[%clk 0:03:00]}  Ra7 {[%clk 0:02:55]} 12. Be3 {[%clk 0:03:01]}  Be6 {[%clk 0:02:51]} 13. Qd2 {[%clk 0:03:00]}  Rb7 {[%clk 0:02:45]} 14. f4 {[%clk 0:02:59]}  f6 {[%clk 0:02:40]} 15. Nc3 {[%clk 0:02:56]}  Nd7 {[%clk 0:02:12]} 16. Nd5 {[%clk 0:02:54]}  Re8 {[%clk 0:01:52]} 17. Rad1 {[%clk 0:02:50]}  Bf8 {[%clk 0:01:52]} 18. f5 {[%clk 0:02:33]}  Bf7 {[%clk 0:01:52]} 19. g4 {[%clk 0:02:33]}  h6 {[%clk 0:01:44]} 20. h4 {[%clk 0:02:33]}  b4 {[%clk 0:01:26]} 21. g5 {[%clk 0:02:33]}  hxg5 {[%clk 0:01:27]} 22. hxg5 {[%clk 0:02:33]}  fxg5 {[%clk 0:01:28]} 23. Bxg5 {[%clk 0:02:33]}  Qa5 {[%clk 0:01:28]} 24. Rf3 {[%clk 0:02:01]}  Bxd5 {[%clk 0:00:52]} 25. exd5 {[%clk 0:01:56]}  Nf6 {[%clk 0:00:35]} 26. Rg3 {[%clk 0:01:48]}  Rf7 {[%clk 0:00:35]} 27. Kh1 {[%clk 0:01:39]}  Qxa2 {[%clk 0:00:26]} 28. Qxb4 {[%clk 0:01:36]}  Rc8 {[%clk 0:00:16]} 29. Ra3 {[%clk 0:01:19]}  Qc4 {[%clk 0:00:16]} 30. Qxc4 {[%clk 0:01:16]}  Rxc4 {[%clk 0:00:17]} 31. c3 {[%clk 0:01:17]}  Nh5 {[%clk 0:00:12]} 32. Bh3 {[%clk 0:00:54]}  Be7 {[%clk 0:00:12]} 33. Bxe7 {[%clk 0:00:52]}  Rxe7 {[%clk 0:00:13]} 34. Rxa6 {[%clk 0:00:52]}  Rh4 {[%clk 0:00:13]} 35. Rxd6 {[%clk 0:00:23]}  Rxh3+ {[%clk 0:00:13]} 36. Kg1 {[%clk 0:00:24]}  Re8 {[%clk 0:00:04]} 37. Re6 {[%clk 0:00:24]}  Rb8 {[%clk 0:00:03]} 38. d6 {[%clk 0:00:21]}  Nf6 {[%clk 0:00:02]} 39. d7 {[%clk 0:00:22]}  Rd8 {[%clk 0:00:02]} 40. Rxe5 {[%clk 0:00:19]}  Rxd7 {[%clk 0:00:02]} 41. Rxd7 {[%clk 0:00:19]}  Nxd7 {[%clk 0:00:02]} 42. Ra5 {[%clk 0:00:14]}  Rd3 {[%clk 0:00:02]} 43. Kf2 {[%clk 0:00:12]}  Kf7 {[%clk 0:00:02]} 44. Ke2 {[%clk 0:00:13]}  Rd6 {[%clk 0:00:02]} 45. b4 {[%clk 0:00:13]}  Rc6 {[%clk 0:00:01]} 46. Kd3 {[%clk 0:00:13]}  Rd6+ {[%clk 0:00:01]} 47. Ke4 {[%clk 0:00:13]}  Rd1 {[%clk 0:00:02]} 48. c4 {[%clk 0:00:13]}  Nf6+ {[%clk 0:00:01]} 49. Ke5 {[%clk 0:00:14]}  Ng4+ {[%clk 0:00:02]} 50. Kf4 {[%clk 0:00:14]}  Rd4+ {[%clk 0:00:02]} 51. Kg5 {[%clk 0:00:14]}  Rxc4 {[%clk 0:00:03]} 52. Ra7+ {[%clk 0:00:14]}  Kf8 {[%clk 0:00:03]} 53. Ra8+ {[%clk 0:00:14]}  Kf7 {[%clk 0:00:03]} 54. Ra7+ {[%clk 0:00:15]}  Kg8 {[%clk 0:00:04]} 55. b5 {[%clk 0:00:14]}  Nf6 {[%clk 0:00:04]} 56. Ra8+ {[%clk 0:00:07]}  Kh7 {[%clk 0:00:04]} 57. Rh8+ {[%clk 0:00:04]}  Kxh8 {[%clk 0:00:03]} 58. Kg6 {[%clk 0:00:03]}  Kg8 {[%clk 0:00:04]} 0-1


[Site "https://www.chess.com"]